lending/lending_fUSD_20240509
["ID","MTS","AMOUNT","RATE_DAILY","PERIOD"]
[326693699,1715256634791,-486.76228913,0.00021,2]
[326693700,1715256634801,-2000.0,0.0002101,2]
[326693701,1715256634811,-2000.0,0.0002102,2]
[326693702,1715256634821,-2000.0,0.0002103,2]
[326693703,1715256634831,-2000.0,0.0002104,2]
[326693704,1715256634840,-606.44771087,0.0002105,2]
[326693705,1715256634852,-722.23231057,0.0002105,2]
[326693706,1715256634864,-1011.00292356,0.0002105,2]
[326693707,1715256634874,-155.55638544,0.00021214,2]
[326693708,1715256634883,-1394.0,0.00021225,2]
[326693709,1715256634895,-3479.74419493,0.00021397,2]
[326693710,1715256634905,-2245.19728474,0.00021398,2]
[326693711,1715256634915,-201.9,0.00021413,2]
[326693712,1715256634925,-140.07280558,0.00021425,2]
[326693713,1715256634938,-13.65716917,0.00021425,2]
[326693714,1715256634948,-158.27,0.00021446,2]
[326693715,1715256634958,-702.28,0.00021446,2]
[326693716,1715256634968,-420.08,0.00021446,2]
[326693717,1715256634979,-163.21,0.00021446,2]
[326693718,1715256634989,-150.0,0.00021446,2]
[326693719,1715256634998,-532.26475646,0.00021558,2]
[326693721,1715256638874,-505.45965716,0.00021558,2]
[326693725,1715256638884,-193.32360779,0.0002156,2]
[326693728,1715256638900,-429.6435528,0.0002156,2]
[326693732,1715256638913,-447.85927127,0.0002156,2]
[326693735,1715256638924,-951.25884104,0.0002156,2]
[326693739,1715256638937,-1651.50874124,0.0002156,2]
[326693743,1715256638947,-600.0,0.00021586,2]
[326693746,1715256638956,-155.55638544,0.00021746,2]
[326693749,1715256638965,-229.72649723,0.00021778,2]
[326693752,1715256638975,-168.08,0.00021791,2]
[326693753,1715256638987,-347.954734,0.000218,2]
[326693757,1715256638998,-200.0,0.00021822,2]
[326693759,1715256639007,-1000.0,0.00021822,2]
[326693762,1715256639017,-500.0,0.00021822,2]
[326693764,1715256639028,-200.0,0.00021822,2]
[326693767,1715256639038,-155.0,0.00021897,2]
[326693770,1715256639047,-251.58593696,0.00021897,2]
[326693773,1715256639060,-15111.38985922,0.00021898,2]
[326693775,1715256639070,-4434.95591295,0.000219,2]
[326693777,1715256639079,-484.0,0.000219,4]
[326693779,1715256639089,-341.0,0.000219,2]
[326693781,1715256639099,-168.86,0.00021918,2]
[326693783,1715256639108,-2000.0,0.00021918,2]
[326693784,1715256639118,-250.0,0.00021918,2]
[326693786,1715256639128,-447.86,0.00021986,3]
[326693788,1715256639137,-223.93,0.00021986,3]
[326693789,1715256639147,-671.79,0.00021986,3]
[326693791,1715256639157,-360.97406222,0.00021994,2]
[326693793,1715256639168,-1765.59543491,0.00021994,2]
[326693795,1715256639180,-3428.50829281,0.00021994,2]
[326693797,1715256639190,-155.0,0.00021995,2]
[326693798,1715256639199,-1314.68942807,0.00021995,2]
[326693800,1715256639209,-1262.76937484,0.00021996,2]
[326693802,1715256639219,-188.62918423,0.00021996,2]
[326693804,1715256639229,-1428.15348629,0.00021996,2]
[326693806,1715256639240,-417.142775,0.00021996,2]
[326693807,1715256639250,-277.64914812,0.00021996,2]
[326693809,1715256639259,-3107.31004319,0.00021996,7]
[326693811,1715256639269,-1228.92718188,0.00021996,2]
[326693812,1715256639279,-5143.46081207,0.00021997,2]
[326693813,1715256639289,-520.03613004,0.00021997,2]
[326693814,1715256639300,-9145.6515404,0.00021998,2]
[326693815,1715256639315,-836.87762474,0.00021998,2]
[326693816,1715256639327,-517.9058607,0.00021998,2]
[326693817,1715256639339,-500.6964493,0.00021998,2]
[326693818,1715256639351,-316.34399999,0.00021998,2]
[326693819,1715256639365,-255.9999999,0.00021998,2]
[326693820,1715256639377,-24131.77870875,0.00021998,2]
[326693821,1715256639388,-2955.24534072,0.00021998,2]
[326693822,1715256639398,-4778.22204175,0.00021998,2]
[326693823,1715256639409,-500.0,0.00021998,2]
[326693824,1715256639419,-446.12945603,0.00021998,2]
[326693825,1715256639430,-168.61031318,0.00021998,2]
[326693826,1715256639440,-1042.02397427,0.00021998,2]
[326693827,1715256639450,-1324.5908,0.00021998,2]
[326693828,1715256639460,-456.31423755,0.00022,2]
[326693829,1715256639470,-235.11,0.00022,2]
[326693830,1715256639480,-1150.0,0.00022,3]
[326693831,1715256639490,-37438.12702625,0.00022,2]
[326693832,1715256639500,-293.7485134,0.00022,2]
[326693833,1715256639511,-2215.61166505,0.00022,2]
[326693834,1715256639521,-1038.04871483,0.00022,2]
[326693835,1715256639530,-416.49353319,0.00022,2]
[326693836,1715256639540,-1004.7843,0.00022,2]
[326693837,1715256639550,-447.8725,0.00022,2]
[326693838,1715256639562,-529.3152,0.00022,2]
[326693839,1715256639571,-150.0,0.00022,3]
[326693840,1715256639580,-194.2188074,0.00022,2]
[326693841,1715256639592,-194.2188074,0.00022,2]
[326693842,1715256639602,-194.2188074,0.00022,2]
[326693843,1715256639612,-194.2188074,0.00022,2]
[326693844,1715256639622,-194.2188074,0.00022,2]
[326693845,1715256639632,-194.2188074,0.00022,2]
[326693846,1715256639642,-194.2188074,0.00022,2]
[326693847,1715256639652,-194.2188074,0.00022,2]
[326693848,1715256639662,-194.2188074,0.00022,2]
[326693849,1715256639672,-194.2188074,0.00022,2]
[326693850,1715256639683,-194.2188074,0.00022,2]
[326693851,1715256639692,-194.2188074,0.00022,2]
[326693852,1715256639702,-194.2188074,0.00022,2]
[326693853,1715256639713,-194.2188074,0.00022,2]
[326693854,1715256639723,-194.2188074,0.00022,2]
[326693855,1715256639733,-194.2188074,0.00022,2]
[326693856,1715256639743,-194.2188074,0.00022,2]
[326693857,1715256639753,-194.2188074,0.00022,2]
[326693858,1715256639763,-194.2188074,0.00022,2]
[326693859,1715256639773,-194.2188074,0.00022,2]
[326693860,1715256639783,-194.2188074,0.00022,2]
[326693861,1715256639792,-194.2188074,0.00022,2]
[326693862,1715256639804,-194.2188074,0.00022,2]
[326693863,1715256639814,-194.2188074,0.00022,2]
[326693864,1715256639824,-194.2188074,0.00022,2]
[326693865,1715256639834,-194.2188074,0.00022,2]
[326693866,1715256639844,-194.2188074,0.00022,2]
[326693867,1715256639854,-194.2188074,0.00022,2]
[326693868,1715256639864,-194.2188074,0.00022,2]
[326693869,1715256639874,-194.2188074,0.00022,2]
[326693870,1715256639884,-194.2188074,0.00022,2]
[326693871,1715256639898,-194.2188074,0.00022,2]
[326693872,1715256639909,-194.2188074,0.00022,2]
[326693873,1715256639918,-194.2188074,0.00022,2]
[326693874,1715256639929,-194.2188074,0.00022,2]
[326693875,1715256639939,-194.2188074,0.00022,2]
[326693876,1715256639950,-194.2188074,0.00022,2]
[326693877,1715256639960,-194.2188074,0.00022,2]
[326693878,1715256639971,-194.2188074,0.00022,2]
[326693879,1715256639981,-194.2188074,0.00022,2]
[326693880,1715256639991,-194.2188074,0.00022,2]
[326693881,1715256640001,-194.2188074,0.00022,2]
[326693882,1715256640011,-194.2188074,0.00022,2]
[326693883,1715256640021,-194.2188074,0.00022,2]
[326693884,1715256640031,-194.2188074,0.00022,2]
[326693885,1715256640042,-194.2188074,0.00022,2]
[326693886,1715256640052,-194.2188074,0.00022,2]
[326693887,1715256640061,-194.2188074,0.00022,2]
[326693888,1715256640071,-194.2188074,0.00022,2]
[326693889,1715256640081,-194.2188074,0.00022,2]
[326693890,1715256640091,-171.35,0.00022081,2]
[326693891,1715256640101,-150.0,0.00022135,5]
[326693892,1715256640110,-153.72997475,0.00022371,2]
[326693893,1715256640120,-834.24,0.00022436,2]
[326693894,1715256640129,-600.0,0.00022485,2]
[326693895,1715256640139,-150.0,0.000225,3]
[326693896,1715256640148,-155.57734293,0.00022515,2]
[326693897,1715256640158,-178.25,0.00022551,2]
[326693898,1715256640169,-155.7551246,0.00022609,2]
[326693899,1715256640179,-155.55638544,0.00022661,2]
[326693900,1715256640189,-155.55638544,0.00022686,2]
[326693901,1715256640198,-190.67,0.00022699,2]
[326693902,1715256640208,-416.49353319,0.00022777,2]
[326693903,1715256640217,-15111.38985918,0.00022787,2]
[326693904,1715256640227,-150.0,0.00022939,5]
[326693905,1715256640237,-150.0,0.00023,3]
[326693906,1715256640247,-153.72997475,0.00023159,2]
[326693907,1715256640257,-895.72,0.00023356,3]
[326693908,1715256640267,-447.86,0.00023356,3]
[326693909,1715256640276,-600.0,0.00023422,2]
[326693910,1715256640287,-150.0,0.000235,3]
[326693911,1715256640297,-160.50194233,0.00023508,2]
[326693912,1715256640307,-168.08,0.00023589,2]
[326693913,1715256640318,-15111.38985918,0.00023676,2]
[326693914,1715256640328,-150.0,0.00023743,7]
[326693915,1715256640338,-158.84052755,0.00023983,2]
[326693916,1715256640347,-1200.0,0.00024,3]
[326693917,1715256640357,-150.0,0.00024,4]
[326693918,1715256640366,-262.88524351,0.00024,2]
[326693919,1715256640375,-827.0,0.00024034,2]
[326693920,1715256640385,-155.55638544,0.00024086,2]
[326693921,1715256640395,-155.55638544,0.00024092,2]
[326693922,1715256640405,-2394.66027943,0.000244,2]
[326693923,1715256640416,-10.87999986,0.00024424,2]
[326693924,1715256641593,-160.47000014,0.00024424,2]
[326693925,1715256641604,-301.14248651,0.000245,2]
[326693926,1715256641616,-699.18793881,0.000245,2]
[326693927,1715256641627,-1051.24850318,0.000245,2]
[326693928,1715256641637,-1074.02169335,0.000245,2]
[326693929,1715256641647,-1104.11739621,0.000245,2]
[326693930,1715256641656,-1000.0,0.000245,2]
[326693931,1715256641666,-1000.0,0.000245,2]
[326693932,1715256641676,-490.55772054,0.000245,2]
[326693933,1715256641689,-509.44227946,0.000245,2]
[326693934,1715256641698,-519.82772054,0.000245,2]
[326693935,1715256641710,-480.17227946,0.000245,2]
[326693936,1715256641720,-261.14481114,0.000245,2]
[326693937,1715256641732,-563.85518886,0.000245,2]
[326693938,1715256641741,-150.0,0.000245,4]
[326693939,1715256641752,-155.57734293,0.00024531,2]
[326693940,1715256641762,-130.57409821,0.00024565,2]
[326693941,1715256641776,-995.94,0.00024565,2]
[326693942,1715256641789,-709.08266212,0.00024565,2]
[326693943,1715256641802,-622.21983407,0.00024565,2]
[326693944,1715256641816,-358.9537836,0.00024565,2]
[326693945,1715256641828,-853.09015929,0.00024565,2]
[326693946,1715256641840,-901.37718854,0.00024565,2]
[326693947,1715256641853,-415.10301408,0.00024565,2]
[326693948,1715256641864,-7042.92,0.00024565,2]
[326693949,1715256641876,-2465.02247697,0.00024565,2]
[326693950,1715256641888,-617.1066423,0.00024565,2]
[326693951,1715256641900,-200.0,0.00024658,2]
[326693952,1715256641909,-163.06,0.0002475,4]
[326693953,1715256641920,-163.06,0.0002475,4]
[326693954,1715256641930,-163.06,0.0002475,4]
[326693955,1715256641941,-163.061,0.0002475,4]
[326693956,1715256641952,-163.06,0.0002475,4]
[326693957,1715256641961,-7500.0,0.000248,2]
[326693958,1715256641971,-162.72114458,0.00024862,2]
[326693959,1715256642019,-1200.0,0.000249,9]
[326693960,1715256642029,-2266.185,0.000249,2]
[326693961,1715256642039,-13056.0940509,0.000249,2]
[326693962,1715256642051,-15886.6135491,0.000249,2]
[326693963,1715256642062,-11579.60682211,0.000249,2]
[326693964,1715256642074,-703.20536157,0.000249,2]
[326693966,1715256642087,-941.00123225,0.000249,2]
[326693967,1715256642100,-330.98596817,0.000249,2]
[326693968,1715256642111,-310.24010705,0.000249,2]
[326693969,1715256642122,-60990.72920885,0.000249,2]
[326693970,1715256642132,-500.0,0.000249,2]
[326693971,1715256642141,-174.53743641,0.000249,2]
[326693972,1715256642151,-174.13852049,0.000249,2]
[326693973,1715256642161,-2408.34910115,0.000249,2]
[326693974,1715256642171,-170.13034698,0.000249,2]
[326693975,1715256642180,-152.42467139,0.000249,2]
[326693976,1715256642189,-174.6851076,0.000249,4]
[326693977,1715256642199,-3676.1736436,0.000249,2]
[326693978,1715256642208,-834.24,0.00024928,2]
[326693979,1715256642217,-72187.43564925,0.00025,3]
[326693980,1715256642229,-67991.11275653,0.00025,3]
[326693981,1715256642240,-47018.75766705,0.00025,3]
[326693982,1715256642935,-150.0,0.00017305,2]
[326693986,1715256642946,-150.0,0.00017389,2]
[326693991,1715256642957,-150.0,0.00017618,2]
[326693994,1715256642966,-511.065,0.00025,3]
[326693997,1715256642980,-4625.32824928,0.00025,3]
[326694000,1715256642993,-1404227.95972561,0.00025,3]
[326694003,1715256643003,-33989.80102344,0.00025,2]
[326694004,1715256643012,-1420.60928094,0.00025,2]
[326694005,1715256643021,-446.63187961,0.00025,2]
[326694007,1715256643031,-218565.005122,0.00025,2]
[326694009,1715256643041,-160.0,0.00025,2]
[326694011,1715256643050,-16592.30723574,0.00025,2]
[326694012,1715256643061,-575.68542526,0.00025,7]
[326694014,1715256643071,-299.89062078,0.00025,2]
[326694016,1715256643080,-153.34361607,0.00025,4]
[326694018,1715256643090,-430.20972578,0.00025,2]
[326694020,1715256643099,-743216.95247332,0.00025,2]
[326694022,1715256643109,-260.88,0.00025,2]
[326694023,1715256643118,-155.47,0.00025,2]
[326694025,1715256643128,-166.95,0.00025,2]
[326694027,1715256643137,-150.0,0.00025,2]
[326694029,1715256643146,-150.0,0.00025,4]
[326694031,1715256643156,-2394.66027942,0.00025186,2]
[326694033,1715256643166,-190.67,0.00025221,120]
[326694034,1715256643175,-155.55638544,0.00025264,2]
[326694036,1715256643185,-155.57734293,0.00025269,2]
[326694038,1715256643194,-150.0,0.00025275,2]
[326694040,1715256643204,-150.0,0.00025276,2]
[326694042,1715256643214,-150.0,0.00025277,2]
[326694044,1715256643223,-150.0,0.00025284,2]
[326694046,1715256643233,-150.0,0.00025292,2]
[326694048,1715256643242,-150.0,0.00025294,2]
[326694050,1715256643251,-150.0,0.00025295,2]
[326694052,1715256643260,-150.0,0.00025297,2]
[326694054,1715256643269,-150.0,0.00025301,2]
[326694056,1715256643278,-150.0,0.00025303,2]
[326694058,1715256643287,-150.0,0.00025305,2]
[326694059,1715256643296,-150.0,0.00025306,2]
[326694061,1715256643305,-150.0,0.00025307,2]
[326694063,1715256643317,-150.0,0.00025307,2]
[326694065,1715256643326,-150.0,0.00025311,2]
[326694067,1715256643337,-150.0,0.00025319,2]
[326694069,1715256643346,-150.0,0.00025325,2]
[326694071,1715256643356,-150.0,0.0002533,2]
[326694073,1715256643365,-150.0,0.00025333,2]
[326694075,1715256643375,-150.0,0.00025336,2]
[326694077,1715256643384,-150.0,0.00025346,2]
[326694079,1715256643394,-150.0,0.00025347,2]
[326694081,1715256643406,-150.0,0.00025348,2]
[326694083,1715256643416,-150.0,0.00025353,2]
[326694085,1715256643426,-150.0,0.00025359,2]
[326694087,1715256643435,-150.0,0.00025359,2]
[326694089,1715256643444,-150.0,0.00025362,2]
[326694091,1715256643454,-150.0,0.00025363,2]
[326694092,1715256643463,-150.0,0.00025369,2]
[326694093,1715256643473,-150.0,0.0002537,2]
[326694095,1715256643483,-150.0,0.00025377,2]
[326694097,1715256643492,-191.42,0.00025379,2]
[326694099,1715256643501,-150.0,0.00025379,2]
[326694101,1715256643511,-150.0,0.00025384,2]
[326694103,1715256643520,-150.0,0.00025385,2]
[326694104,1715256643529,-150.0,0.00025387,2]
[326694106,1715256643538,-168.08,0.00025387,2]
[326694108,1715256643547,-150.0,0.00025389,2]
[326694110,1715256643560,-150.0,0.0002539,2]
[326694113,1715256643571,-150.0,0.00025393,2]
[326694114,1715256643580,-150.0,0.00025394,2]
[326694116,1715256643589,-150.0,0.00025395,2]
[326694118,1715256643599,-150.0,0.00025395,2]
[326694120,1715256643608,-150.0,0.00025397,2]
[326694122,1715256643618,-150.0,0.000254,2]
[326694125,1715256643629,-150.0,0.00025401,2]
[326694127,1715256643639,-150.0,0.00025404,2]
[326694129,1715256643648,-150.0,0.00025405,2]
[326694131,1715256643658,-150.0,0.00025408,2]
[326694133,1715256643668,-150.0,0.00025411,2]
[326694135,1715256643678,-150.0,0.00025411,2]
[326694136,1715256643687,-150.0,0.00025413,2]
[326694138,1715256643697,-150.0,0.00025414,2]
[326694139,1715256643708,-150.0,0.00025415,2]
[326694140,1715256643717,-150.0,0.00025416,2]
[326694141,1715256643728,-150.0,0.00025417,2]
[326694142,1715256643737,-150.0,0.00025423,2]
[326694143,1715256643746,-150.0,0.00025426,2]
[326694144,1715256643757,-150.0,0.00025436,2]
[326694145,1715256643767,-150.0,0.00025436,2]
[326694146,1715256643777,-150.0,0.00025436,2]
[326694147,1715256643787,-150.0,0.00025436,2]
[326694148,1715256643796,-150.0,0.00025441,2]
[326694149,1715256643806,-150.0,0.00025441,2]
[326694150,1715256643818,-150.0,0.00025448,2]
[326694151,1715256643829,-150.0,0.00025453,2]
[326694152,1715256643839,-150.0,0.00025453,2]
[326694153,1715256643848,-15111.38985918,0.00025454,2]
[326694154,1715256643858,-150.0,0.00025456,2]
[326694155,1715256643869,-150.0,0.0002546,2]
[326694156,1715256643878,-150.0,0.00025464,2]
[326694157,1715256643888,-152.42467112,0.00025468,2]
[326694158,1715256643901,-150.0,0.00025468,2]
[326694159,1715256643910,-150.0,0.00025471,2]
[326694160,1715256643921,-150.0,0.00025474,2]
[326694161,1715256643931,-150.0,0.00025477,2]
[326694162,1715256643942,-150.0,0.00025478,2]
[326694163,1715256643952,-150.0,0.00025479,2]
[326694164,1715256643962,-150.0,0.00025485,2]
[326694165,1715256643972,-150.0,0.00025491,2]
[326694166,1715256643984,-150.0,0.00025492,2]
[326694167,1715256643995,-150.0,0.00025495,2]
[326694168,1715256644004,-150.0,0.00025496,2]
[326694169,1715256644015,-150.0,0.00025498,2]
[326694170,1715256644024,-150.0,0.00025498,2]
[326694171,1715256644034,-150.0,0.00025499,2]
[326694172,1715256644044,-150.0,0.00025499,2]
[326694173,1715256644054,-150.0,0.00025503,2]
[326694174,1715256644066,-150.0,0.00025506,2]
[326694175,1715256644075,-150.0,0.00025519,2]
[326694176,1715256644084,-150.0,0.00025522,2]
[326694177,1715256644093,-150.0,0.00025526,2]
[326694178,1715256644104,-150.0,0.00025528,2]
[326694179,1715256644113,-150.0,0.00025529,2]
[326694180,1715256644123,-150.0,0.0002553,2]
[326694181,1715256644133,-150.0,0.00025532,2]
[326694182,1715256644143,-150.0,0.00025533,2]
[326694183,1715256644153,-150.0,0.00025536,2]
[326694184,1715256644164,-150.0,0.00025536,2]
[326694185,1715256644175,-150.0,0.00025537,2]
[326694186,1715256644184,-150.0,0.00025539,2]
[326694187,1715256644195,-150.0,0.00025549,2]
[326694188,1715256644204,-325.58,0.00025549,2]
[326694189,1715256644214,-162.72114458,0.0002559,2]
[326694190,1715256644224,-162.72114458,0.00025601,2]
[326694191,1715256644233,-285.61,0.00025607,2]
[326694192,1715256644243,-155.47,0.00025617,2]
[326694193,1715256644252,-153.72997475,0.00025637,2]
[326694194,1715256644262,-153.9793298,0.00025681,2]
[326694195,1715256644271,-5376.15866875,0.00025699,2]
[326694196,1715256644281,-335.73840241,0.000257,7]
[326694197,1715256644291,-155.0,0.000257,2]
[326694198,1715256644300,-250000.0,0.000257,2]
[326694199,1715256644312,-969.0,0.000257,9]
[326694200,1715256644322,-2408.34910113,0.00025864,2]
[326694201,1715256644332,-2394.66027942,0.00025971,2]
[326694202,1715256644341,-1250.0,0.00026,3]
[326694203,1715256644351,-152.42467112,0.00026035,2]
[326694204,1715256644361,-13324.14515605,0.000261,2]
[326694205,1715256644371,-170.00823866,0.00026141,2]
[326694206,1715256644381,-15111.38985918,0.00026344,2]
[326694207,1715256644390,-987.18,0.00026371,2]
[326694208,1715256644400,-523.22,0.00026371,2]
[326694209,1715256644413,-150.0,0.00026371,2]
[326694210,1715256644423,-163.16,0.00026371,2]
[326694211,1715256644432,-523.22,0.00026371,2]
[326694212,1715256644441,-150.0,0.00026371,2]
[326694213,1715256644450,-523.22,0.00026371,2]
[326694214,1715256644461,-150.0,0.00026371,2]
[326694215,1715256644471,-522.54,0.00026371,2]
[326694216,1715256644481,-153.9793298,0.00026459,2]
[326694217,1715256644491,-4937.0,0.000265,2]
[326694218,1715256644501,-260.88,0.000265,2]
[326694219,1715256644512,-155.47,0.000265,2]
[326694220,1715256644522,-166.95,0.000265,2]
[326694221,1715256644532,-152.42467112,0.00026603,2]
[326694222,1715256644543,-2394.66027942,0.00026757,2]
[326694223,1715256644553,-171.35,0.00026766,2]
[326694224,1715256644565,-157.29743543,0.00026804,2]
[326694225,1715256644575,-2408.34910113,0.00026827,2]
[326694226,1715256644585,-4843.68798787,0.000269,7]
[326694227,1715256644596,-1600.0,0.000269,9]
[326694228,1715256644606,-117651.44262718,0.00026989,7]
[326694229,1715256644843,-3105.90721775,0.00026989,7]
[326694230,1715256644855,-375.99950476,0.00026989,7]
[326694231,1715256644867,-554.86418334,0.00026989,7]
[326694232,1715256644878,-1853.6965244,0.00026989,7]
[326694233,1715256644891,-1344.33106011,0.00026989,7]
[326694234,1715256644907,-1761.45133784,0.00026989,7]
[326694235,1715256644919,-2901.01946635,0.00026989,7]
[326694236,1715256644930,-1519.95012414,0.00026989,7]
[326694237,1715256644946,-574.92905729,0.00026989,7]
[326694238,1715256644955,-1026.04080833,0.00026998,2]
[326694239,1715256644967,-298.54999167,0.00026998,2]
[326694240,1715256644979,-10030.75000833,0.00027,4]
[326694241,1715256644991,-1087.29,0.00027,4]
[326694242,1715256645003,-799.464547,0.00027,4]
[326694243,1715256645014,-17551.9815854,0.00027,4]
[326694244,1715256645025,-3351.74839999,0.00027,4]
[326694245,1715256645037,-4100.4399,0.00027,4]
[326694246,1715256645049,-281.186742,0.00027,4]
[326694247,1715256645062,-345.91147168,0.00027,4]
[326694248,1715256645074,-405.72532813,0.00027,4]
[326694249,1715256645086,-39224.19838232,0.00027,4]
[326694250,1715256645097,-1841.28543829,0.00027,4]
[326694251,1715256645108,-1780.90789548,0.00027,4]
[326694252,1715256645121,-4615.48261927,0.00027,4]
[326694253,1715256645133,-23536.69182342,0.00027,4]
[326694254,1715256645143,-155.0,0.00027,2]
[326694255,1715256645152,-639.92743495,0.00027,2]
[326694256,1715256645162,-4650.17117987,0.00027,21]
[326694275,1715256646928,-150.0,0.00017305,2]
[326694277,1715256646940,-150.0,0.0001734,2]
[326694279,1715256646949,-150.0,0.00017385,2]
[326694281,1715256646959,-150.0,0.00017493,2]
[326694282,1715256646969,-120.83336248,0.00017533,2]
[326694285,1715256646984,-29.16663752,0.00017533,2]
[326694287,1715256646994,-150.0,0.00017538,2]
[326694289,1715256647003,-150.0,0.0001755,2]
[326694290,1715256647013,-150.0,0.0001764,2]
[326694292,1715256647022,-150.0,0.00017653,2]
[326694294,1715256647031,-150.0,0.00017654,2]
[326694296,1715256647041,-150.0,0.00017725,2]
[326694297,1715256647051,-150.0,0.00017735,2]
[326694299,1715256647062,-150.0,0.00017741,2]
[326694301,1715256647072,-1138.02112885,0.00021127,2]
[326694303,1715256647082,-150.0,0.00025094,2]
[326694305,1715256647091,-150.0,0.0002511,2]
[326694307,1715256647102,-150.0,0.00025111,2]
[326694309,1715256647111,-150.0,0.00025113,2]
[326694311,1715256647121,-4.23838773,0.00025125,2]
[326694314,1715256647133,-145.76161227,0.00025125,2]
[326694316,1715256647143,-150.0,0.00025128,2]
[326694318,1715256647153,-150.0,0.00025133,2]
[326694320,1715256647162,-150.0,0.00025146,2]
[326694321,1715256647171,-150.0,0.00025146,2]
[326694323,1715256647181,-150.0,0.00025147,2]
[326694325,1715256647191,-150.0,0.00025168,2]
[326694327,1715256647200,-150.0,0.00025174,2]
[326694329,1715256647209,-150.0,0.00025174,2]
[326694331,1715256647219,-50.27836113,0.00025176,2]
[326694332,1715256647231,-99.72163887,0.00025176,2]
[326694333,1715256647240,-150.0,0.00025178,2]
[326694334,1715256647250,-150.0,0.00025182,2]
[326694335,1715256647259,-150.0,0.00025194,2]
[326694336,1715256647270,-150.0,0.000252,2]
[326694337,1715256647280,-150.0,0.00025206,2]
[326694338,1715256647290,-150.0,0.00025213,2]
[326694339,1715256647300,-150.0,0.00025221,2]
[326694340,1715256647309,-150.0,0.00025223,2]
[326694341,1715256647319,-150.0,0.00025226,2]
[326694342,1715256647328,-150.0,0.00025229,2]
[326694343,1715256647338,-150.0,0.00025233,2]
[326694344,1715256647347,-150.0,0.00025233,2]
[326694345,1715256647357,-150.0,0.00025236,2]
[326694346,1715256647366,-150.0,0.00025238,2]
[326694347,1715256647376,-150.0,0.00025239,2]
[326694348,1715256647386,-150.0,0.0002524,2]
[326694349,1715256647396,-150.0,0.00025243,2]
[326694350,1715256647408,-150.0,0.00025247,2]
[326694351,1715256647417,-150.0,0.0002525,2]
[326694352,1715256647427,-150.0,0.00025252,2]
[326694353,1715256647437,-150.0,0.00025258,2]
[326694354,1715256647447,-150.0,0.00025259,2]
[326694355,1715256647457,-150.0,0.00025265,2]
[326694356,1715256647466,-150.0,0.00025266,2]
[326694357,1715256647475,-150.0,0.00025268,2]
[326694358,1715256647485,-150.0,0.00025277,2]
[326694359,1715256647495,-150.0,0.00025281,2]
[326694360,1715256647504,-150.0,0.00025285,2]
[326694361,1715256647514,-150.0,0.00025292,2]
[326694362,1715256647524,-150.0,0.00025297,2]
[326694363,1715256647534,-150.0,0.00025303,2]
[326694364,1715256647544,-150.0,0.00025314,2]
[326694365,1715256647554,-150.0,0.00025322,2]
[326694366,1715256647566,-150.0,0.00025323,2]
[326694367,1715256647575,-150.0,0.00025331,2]
[326694368,1715256647587,-150.0,0.00025333,2]
[326694369,1715256647597,-150.0,0.00025336,2]
[326694370,1715256647606,-150.0,0.00025345,2]
[326694371,1715256647617,-150.0,0.00025347,2]
[326694372,1715256647626,-150.0,0.00025353,2]
[326694373,1715256647636,-150.0,0.00025355,2]
[326694374,1715256647646,-150.0,0.00025357,2]
[326694375,1715256647656,-150.0,0.00025358,2]